[Event "RUS-ch Blitz 2021"]
[Site "Sochi"]
[Date "2021.10.11"]
[Round "1.2"]
[White "Eremeev, Mikhail"]
[Black "Dreev, Aleksey"]
[Result "0-1"]
[ECO "B13"]
[WhiteElo "2127"]
[BlackElo "2635"]
[Annotator "ChessBase"]
[PlyCount "63"]
[EventDate "2021.10.11"]
[EventType "blitz"]
[EventCountry "RUS"]
[SourceTitle "playchess.com"]
[Source "ChessBase"]
[SourceQuality "1"]
[TimeControl "180+2"]

1. d4 {[%emt 0:00:00]} d5 {[%emt 0:00:05]} 2. Bf4 {[%emt 0:00:01]} c5 {[%emt 0:
00:05]} 3. e3 {[%emt 0:00:03]} cxd4 {[%emt 0:00:00]} 4. exd4 {[%emt 0:00:00]}
Nc6 {[%emt 0:00:06]} 5. Nf3 {[%emt 0:00:15]} Bg4 {[%emt 0:00:00]} 6. Nbd2 {
[%emt 0:00:13]} e6 {[%emt 0:00:03]} 7. c3 {[%emt 0:00:00]} Bd6 {[%emt 0:00:10]}
8. Bxd6 {[%emt 0:00:08]} Qxd6 {[%emt 0:00:00]} 9. Be2 {[%emt 0:00:03]} Nge7 {
[%emt 0:00:00]} 10. O-O {[%emt 0:00:00]} O-O {[%emt 0:00:07]} 11. Re1 {[%emt 0:
00:00]} Ng6 {[%emt 0:00:14]} 12. Ne5 {[%emt 0:00:37]} Bxe2 {[%emt 0:00:13]} 13.
Qxe2 {[%emt 0:00:05]} Ncxe5 {[%emt 0:00:02]} 14. dxe5 {[%emt 0:00:00]} Qb6 {
[%emt 0:00:18]} 15. Nb3 {[%emt 0:00:09]} a5 {[%emt 0:00:24]} 16. Nd4 {[%emt 0:
00:15]} Rac8 {[%emt 0:00:01]} 17. a3 {[%emt 0:00:12]} Rc4 {[%emt 0:00:07]} 18.
g3 {[%emt 0:00:09]} Rfc8 {[%emt 0:00:00]} 19. Rad1 {[%emt 0:00:11]} Ne7 {
[%emt 0:00:00]} 20. Rd2 {[%emt 0:00:17]} Nc6 {[%emt 0:00:13]} 21. Red1 {
[%emt 0:00:06]} Qc7 {[%emt 0:00:03]} 22. f4 {[%emt 0:00:08]} Qb6 {[%emt 0:00:
16]} 23. Kg2 {[%emt 0:00:03]} Ra4 {[%emt 0:00:13]} 24. f5 {[%emt 0:00:14]} Nxd4
{[%emt 0:00:06]} 25. Rxd4 {[%emt 0:00:09]} Rxd4 {[%emt 0:00:11]} 26. Rxd4 {
[%emt 0:00:04]} exf5 {[%emt 0:00:00]} 27. Kh3 {[%emt 0:00:21]} Qe6 {[%emt 0:00:
04]} 28. Qf3 {[%emt 0:00:07]} f4+ {[%emt 0:00:14]} 29. g4 {[%emt 0:00:00]} h5 {
[%emt 0:00:12]} 30. Rxf4 {[%emt 0:00:09]} Rc7 {[%emt 0:00:11]} 31. Rd4 {
[%emt 0:00:03]} hxg4+ {[%emt 0:00:00]} 32. Qxg4 {[%emt 0:00:02]} 0-1

[Event "RUS-ch Blitz 2021"]
[Site "Sochi"]
[Date "2021.10.11"]
[Round "1.3"]
[White "Sarana, Alexey"]
[Black "Esipenko, Aleksandr"]
[Result "1-0"]
[ECO "D02"]
[WhiteElo "2649"]
[BlackElo "2087"]
[Annotator "ChessBase"]
[PlyCount "61"]
[EventDate "2021.10.11"]
[EventType "blitz"]
[EventCountry "RUS"]
[SourceTitle "playchess.com"]
[Source "ChessBase"]
[SourceQuality "1"]
[TimeControl "180+2"]

1. Nf3 {[%emt 0:00:00]} d5 {[%emt 0:00:00]} 2. d4 {[%emt 0:00:06]} Nf6 {
[%emt 0:00:01]} 3. c4 {[%emt 0:00:00]} e6 {[%emt 0:00:00]} 4. g3 {[%emt 0:00:
06]} b6 {[%emt 0:00:03]} 5. cxd5 {[%emt 0:00:00]} exd5 {[%emt 0:00:00]} 6. Bg2
{[%emt 0:00:00]} Bb7 {[%emt 0:00:07]} 7. Nc3 {[%emt 0:00:00]} Bd6 {[%emt 0:00:
00]} 8. O-O {[%emt 0:00:00]} O-O {[%emt 0:00:00]} 9. Ne5 {[%emt 0:00:07]} Nbd7
{[%emt 0:00:06]} 10. Bf4 {[%emt 0:00:00]} Re8 {[%emt 0:00:08]} 11. Nxd7 {
[%emt 0:00:00]} Qxd7 {[%emt 0:00:03]} 12. Bxd6 {[%emt 0:00:11]} Qxd6 {[%emt 0:
00:00]} 13. Qc2 {[%emt 0:00:03]} a6 {[%emt 0:00:00]} 14. Rac1 {[%emt 0:00:04]}
Re7 {[%emt 0:00:02]} 15. e3 {[%emt 0:00:03]} Ne4 {[%emt 0:00:26]} 16. Ne2 {
[%emt 0:00:04]} Rae8 {[%emt 0:00:26]} 17. Nf4 {[%emt 0:00:00]} a5 {[%emt 0:00:
29]} 18. Rfe1 {[%emt 0:00:03]} Ba6 {[%emt 0:00:34]} 19. Qc6 {[%emt 0:00:00]}
Qxc6 {[%emt 0:00:13]} 20. Rxc6 {[%emt 0:00:00]} Bb7 {[%emt 0:00:00]} 21. Rc2 {
[%emt 0:00:06]} f6 {[%emt 0:00:08]} 22. Rec1 {[%emt 0:00:10]} c6 {[%emt 0:00:
06]} 23. h4 {[%emt 0:00:11]} Kf7 {[%emt 0:00:00]} 24. a3 {[%emt 0:00:02]} Nd6 {
[%emt 0:00:09]} 25. Rxc6 {[%emt 0:00:18]} Bxc6 {[%emt 0:00:20]} 26. Rxc6 {
[%emt 0:00:00]} Nc8 {[%emt 0:00:12]} 27. Bxd5+ {[%emt 0:00:14]} Kf8 {[%emt 0:
00:07]} 28. Ne6+ {[%emt 0:00:00]} Kf7 {[%emt 0:00:07]} 29. Nc7+ {[%emt 0:00:13]
} Kg6 {[%emt 0:00:00]} 30. Nxe8 {[%emt 0:00:03]} Rxe8 {[%emt 0:00:02]} 31. Be6
{[%emt 0:00:02]} 1-0

[Event "RUS-ch Blitz 2021"]
[Site "Sochi"]
[Date "2021.10.11"]
[Round "1.4"]
[White "Gavrilov, Maxim"]
[Black "Lysyj, Igor"]
[Result "0-1"]
[ECO "B14"]
[WhiteElo "2070"]
[BlackElo "2603"]
[Annotator "ChessBase"]
[PlyCount "45"]
[EventDate "2021.10.11"]
[EventType "blitz"]
[EventCountry "RUS"]
[SourceTitle "playchess.com"]
[Source "ChessBase"]
[SourceQuality "1"]
[TimeControl "180+2"]

1. d4 {[%emt 0:00:00]} Nf6 {[%emt 0:00:04]} 2. c4 {[%emt 0:00:04]} e6 {[%emt 0:
00:00]} 3. Nc3 {[%emt 0:00:10]} Bb4 {[%emt 0:00:00]} 4. Nf3 {[%emt 0:00:00]}
O-O {[%emt 0:00:00]} 5. Bg5 {[%emt 0:00:00]} c5 {[%emt 0:00:07]} 6. e3 {
[%emt 0:00:00]} cxd4 {[%emt 0:00:00]} 7. exd4 {[%emt 0:00:10]} d5 {[%emt 0:00:
04]} 8. cxd5 {[%emt 0:00:25]} exd5 {[%emt 0:00:03]} 9. Be2 {[%emt 0:00:07]} h6
{[%emt 0:00:05]} 10. Bh4 {[%emt 0:00:07]} g5 {[%emt 0:00:04]} 11. Bg3 {[%emt 0:
00:06]} Ne4 {[%emt 0:00:00]} 12. Rc1 {[%emt 0:00:55]} Nc6 {[%emt 0:00:20]} 13.
O-O {[%emt 0:00:14]} Be6 {[%emt 0:00:10]} 14. Ne5 {[%emt 0:00:10]} Nxg3 {
[%emt 0:00:11]} 15. fxg3 {[%emt 0:00:11]} Nxe5 {[%emt 0:00:47]} 16. dxe5 {
[%emt 0:00:00]} Qb6+ {[%emt 0:00:16]} 17. Kh1 {[%emt 0:00:07]} Rad8 {[%emt 0:
00:04]} 18. Bd3 {[%emt 0:00:24]} Kg7 {[%emt 0:00:04]} 19. Qh5 {[%emt 0:00:16]}
Be7 {[%emt 0:00:13]} 20. Ne2 {[%emt 0:00:04]} Qe3 {[%emt 0:00:07]} 21. Rf3 {
[%emt 0:00:10]} Qxe5 {[%emt 0:00:06]} 22. Rcf1 {[%emt 0:00:00]} f5 {[%emt 0:00:
28]} 23. R3f2 {[%emt 0:00:06]} 0-1

[Event "RUS-ch Blitz 2021"]
[Site "Sochi"]
[Date "2021.10.11"]
[Round "1.5"]
[White "Sjugirov, Sanan"]
[Black "Mochalin, Faddey"]
[Result "1-0"]
[ECO "A07"]
[WhiteElo "2663"]
[BlackElo "2076"]
[Annotator "ChessBase"]
[PlyCount "85"]
[EventDate "2021.10.11"]
[EventType "blitz"]
[EventCountry "RUS"]
[SourceTitle "playchess.com"]
[Source "ChessBase"]
[SourceQuality "1"]
[TimeControl "180+2"]

1. Nf3 {[%emt 0:00:05]} d5 {[%emt 0:00:00]} 2. g3 {[%emt 0:00:09]} c6 {[%emt 0:
00:02]} 3. Bg2 {[%emt 0:00:00]} Bg4 {[%emt 0:00:00]} 4. O-O {[%emt 0:00:00]}
Nd7 {[%emt 0:00:09]} 5. d4 {[%emt 0:00:04]} e6 {[%emt 0:00:04]} 6. c4 {[%emt 0:
00:00]} Be7 {[%emt 0:00:12]} 7. h3 {[%emt 0:00:15]} Bh5 {[%emt 0:00:12]} 8.
cxd5 {[%emt 0:00:12]} exd5 {[%emt 0:00:00]} 9. Qb3 {[%emt 0:00:00]} Qb6 {
[%emt 0:00:38]} 10. Qe3 {[%emt 0:00:01]} Ngf6 {[%emt 0:00:14]} 11. Nh4 {
[%emt 0:00:18]} Bg6 {[%emt 0:00:06]} 12. Nc3 {[%emt 0:00:00]} Kf8 {[%emt 0:00:
08]} 13. Nxg6+ {[%emt 0:00:26]} hxg6 {[%emt 0:00:00]} 14. Qd3 {[%emt 0:00:00]}
Rd8 {[%emt 0:00:27]} 15. Bf4 {[%emt 0:00:01]} Kg8 {[%emt 0:00:05]} 16. Rab1 {
[%emt 0:00:00]} Nf8 {[%emt 0:00:28]} 17. b4 {[%emt 0:00:24]} Ne6 {[%emt 0:00:
00]} 18. Be5 {[%emt 0:00:00]} a6 {[%emt 0:00:13]} 19. Bxf6 {[%emt 0:00:20]}
gxf6 {[%emt 0:00:14]} 20. e3 {[%emt 0:00:00]} f5 {[%emt 0:00:02]} 21. a4 {
[%emt 0:00:11]} Bxb4 {[%emt 0:00:10]} 22. Na2 {[%emt 0:00:01]} a5 {[%emt 0:00:
00]} 23. Nxb4 {[%emt 0:00:09]} axb4 {[%emt 0:00:01]} 24. Qd2 {[%emt 0:00:00]}
Rd7 {[%emt 0:00:05]} 25. Rxb4 {[%emt 0:00:03]} Qa7 {[%emt 0:00:04]} 26. Rfb1 {
[%emt 0:00:07]} Kg7 {[%emt 0:00:01]} 27. h4 {[%emt 0:00:04]} Ra8 {[%emt 0:00:
06]} 28. Qb2 {[%emt 0:00:19]} Rb8 {[%emt 0:00:00]} 29. Bf1 {[%emt 0:00:14]} Qa5
{[%emt 0:00:00]} 30. Qc2 {[%emt 0:00:07]} Qa7 {[%emt 0:00:00]} 31. Rb6 {
[%emt 0:00:07]} Ra8 {[%emt 0:00:02]} 32. R6b4 {[%emt 0:00:07]} Rb8 {[%emt 0:00:
01]} 33. Qc3 {[%emt 0:00:05]} Qa5 {[%emt 0:00:08]} 34. Qb3 {[%emt 0:00:00]} Qa7
{[%emt 0:00:01]} 35. Be2 {[%emt 0:00:04]} Rc7 {[%emt 0:00:01]} 36. Rb6 {
[%emt 0:00:06]} Nd8 {[%emt 0:00:10]} 37. Qb4 {[%emt 0:00:00]} Rd7 {[%emt 0:00:
01]} 38. a5 {[%emt 0:00:03]} Ra8 {[%emt 0:00:03]} 39. a6 {[%emt 0:00:02]} bxa6
{[%emt 0:00:03]} 40. Rxa6 {[%emt 0:00:01]} Qb7 {[%emt 0:00:03]} 41. Qxb7 {
[%emt 0:00:06]} Rxb7 {[%emt 0:00:01]} 42. Rxb7 {[%emt 0:00:01]} Rxa6 {[%emt 0:
00:00]} 43. Bxa6 {[%emt 0:00:01]} 1-0

[Event "RUS-ch Blitz 2021"]
[Site "Sochi"]
[Date "2021.10.11"]
[Round "1.6"]
[White "Gimadutdinov, Ilnur"]
[Black "Tsydypov, Zhamsaran"]
[Result "0-1"]
[ECO "C48"]
[WhiteElo "2146"]
[BlackElo "2526"]
[Annotator "ChessBase"]
[PlyCount "110"]
[EventDate "2021.10.11"]
[EventType "blitz"]
[EventCountry "RUS"]
[SourceTitle "playchess.com"]
[Source "ChessBase"]
[SourceQuality "1"]
[TimeControl "180+2"]

1. e4 {[%emt 0:00:00]} e5 {[%emt 0:00:04]} 2. Nc3 {[%emt 0:00:04]} Nc6 {
[%emt 0:00:00]} 3. Nf3 {[%emt 0:00:09]} Nf6 {[%emt 0:00:01]} 4. Bb5 {[%emt 0:
00:01]} Nd4 {[%emt 0:00:00]} 5. a4 {[%emt 0:00:17]} c6 {[%emt 0:00:17]} 6. Be2
{[%emt 0:00:02]} Nxe2 {[%emt 0:00:08]} 7. Qxe2 {[%emt 0:00:00]} d6 {[%emt 0:00:
04]} 8. h3 {[%emt 0:00:01]} Be7 {[%emt 0:00:00]} 9. O-O {[%emt 0:00:00]} O-O {
[%emt 0:00:07]} 10. d3 {[%emt 0:00:02]} h6 {[%emt 0:00:00]} 11. Bd2 {[%emt 0:
00:16]} Re8 {[%emt 0:00:00]} 12. Nh2 {[%emt 0:00:00]} Bf8 {[%emt 0:00:22]} 13.
f4 {[%emt 0:00:10]} exf4 {[%emt 0:00:00]} 14. Bxf4 {[%emt 0:00:00]} d5 {
[%emt 0:00:11]} 15. e5 {[%emt 0:00:09]} Qb6+ {[%emt 0:00:37]} 16. Kh1 {[%emt 0:
00:07]} Qxb2 {[%emt 0:00:03]} 17. Bd2 {[%emt 0:00:17]} Qb6 {[%emt 0:00:40]} 18.
Rae1 {[%emt 0:00:19]} Nh7 {[%emt 0:00:16]} 19. Qf3 {[%emt 0:00:02]} Be6 {
[%emt 0:00:06]} 20. Ng4 {[%emt 0:00:13]} Qd8 {[%emt 0:00:00]} 21. Qf4 {[%emt 0:
00:29]} Be7 {[%emt 0:00:00]} 22. Qf3 {[%emt 0:00:24]} Bg5 {[%emt 0:00:05]} 23.
Bxg5 {[%emt 0:00:05]} Qxg5 {[%emt 0:00:01]} 24. Ne2 {[%emt 0:00:05]} Qh4 {
[%emt 0:00:12]} 25. Nd4 {[%emt 0:00:09]} Ng5 {[%emt 0:00:03]} 26. Qf4 {[%emt 0:
00:10]} Bxg4 {[%emt 0:00:05]} 27. Qxg4 {[%emt 0:00:04]} Qxg4 {[%emt 0:00:03]}
28. hxg4 {[%emt 0:00:00]} g6 {[%emt 0:00:00]} 29. Nf3 {[%emt 0:00:06]} Ne6 {
[%emt 0:00:00]} 30. Nh4 {[%emt 0:00:08]} c5 {[%emt 0:00:04]} 31. Rf6 {[%emt 0:
00:02]} Re7 {[%emt 0:00:00]} 32. Ref1 {[%emt 0:00:01]} Rae8 {[%emt 0:00:06]}
33. c3 {[%emt 0:00:10]} Ng5 {[%emt 0:00:07]} 34. d4 {[%emt 0:00:00]} cxd4 {
[%emt 0:00:02]} 35. cxd4 {[%emt 0:00:01]} Ne6 {[%emt 0:00:00]} 36. Rd1 {
[%emt 0:00:02]} Rc7 {[%emt 0:00:03]} 37. Kh2 {[%emt 0:00:00]} Ree7 {[%emt 0:00:
03]} 38. Nf3 {[%emt 0:00:02]} Rc4 {[%emt 0:00:03]} 39. a5 {[%emt 0:00:00]} Ra4
{[%emt 0:00:00]} 40. Rc1 {[%emt 0:00:03]} Nxd4 {[%emt 0:00:02]} 41. Rc8+ {
[%emt 0:00:02]} Kg7 {[%emt 0:00:03]} 42. Rd6 {[%emt 0:00:05]} Nxf3+ {[%emt 0:
00:07]} 43. gxf3 {[%emt 0:00:00]} Rxe5 {[%emt 0:00:01]} 44. Rd7 {[%emt 0:00:06]
} Rf4 {[%emt 0:00:00]} 45. Kg3 {[%emt 0:00:00]} g5 {[%emt 0:00:02]} 46. Rcc7 {
[%emt 0:00:02]} Re3 {[%emt 0:00:05]} 47. Rxb7 {[%emt 0:00:00]} Rexf3+ {[%emt 0:
00:00]} 48. Kg2 {[%emt 0:00:01]} a6 {[%emt 0:00:00]} 49. Rxd5 {[%emt 0:00:03]}
Ra3 {[%emt 0:00:05]} 50. Ra7 {[%emt 0:00:03]} Rxg4+ {[%emt 0:00:01]} 51. Kf2 {
[%emt 0:00:00]} Rf4+ {[%emt 0:00:00]} 52. Ke2 {[%emt 0:00:00]} g4 {[%emt 0:00:
03]} 53. Rxa6 {[%emt 0:00:01]} g3 {[%emt 0:00:01]} 54. Rd1 {[%emt 0:00:04]}
Rf2+ {[%emt 0:00:00]} 55. Ke1 {[%emt 0:00:01]} Re3# {[%emt 0:00:03]} 0-1

[Event "RUS-ch Blitz 2021"]
[Site "Sochi"]
[Date "2021.10.11"]
[Round "1.7"]
[White "Sakaev, Konstantin"]
[Black "Romanov, Kirill"]
[Result "1/2-1/2"]
[ECO "A65"]
[WhiteElo "2603"]
[BlackElo "2023"]
[Annotator "ChessBase"]
[PlyCount "50"]
[EventDate "2021.10.11"]
[EventType "blitz"]
[EventCountry "RUS"]
[SourceTitle "playchess.com"]
[Source "ChessBase"]
[SourceQuality "1"]
[TimeControl "180+2"]

1. d4 {[%emt 0:00:00]} Nf6 {[%emt 0:00:05]} 2. c4 {[%emt 0:00:01]} c5 {[%emt 0:
00:00]} 3. d5 {[%emt 0:00:00]} e6 {[%emt 0:00:06]} 4. Nc3 {[%emt 0:00:04]} exd5
{[%emt 0:00:00]} 5. cxd5 {[%emt 0:00:01]} d6 {[%emt 0:00:00]} 6. e4 {[%emt 0:
00:14]} g6 {[%emt 0:00:00]} 7. Be2 {[%emt 0:00:08]} Bg7 {[%emt 0:00:00]} 8. Be3
{[%emt 0:00:03]} O-O {[%emt 0:00:08]} 9. Nf3 {[%emt 0:00:04]} Bg4 {[%emt 0:00:
09]} 10. Nd2 {[%emt 0:00:00]} Bxe2 {[%emt 0:00:05]} 11. Qxe2 {[%emt 0:00:00]}
Re8 {[%emt 0:00:15]} 12. O-O {[%emt 0:00:06]} Nbd7 {[%emt 0:00:00]} 13. h3 {
[%emt 0:00:04]} a6 {[%emt 0:00:13]} 14. a4 {[%emt 0:00:01]} Nh5 {[%emt 0:00:00]
} 15. g4 {[%emt 0:00:53]} Nhf6 {[%emt 0:00:00]} 16. Bf4 {[%emt 0:00:13]} Ne5 {
[%emt 0:00:13]} 17. Bg3 {[%emt 0:00:09]} h5 {[%emt 0:00:54]} 18. g5 {[%emt 0:
00:00]} Nh7 {[%emt 0:00:00]} 19. f4 {[%emt 0:00:01]} Nd7 {[%emt 0:00:00]} 20.
Qf3 {[%emt 0:00:40]} Rb8 {[%emt 0:00:11]} 21. Nc4 {[%emt 0:00:10]} Qe7 {
[%emt 0:00:21]} 22. a5 {[%emt 0:00:03]} b5 {[%emt 0:00:03]} 23. axb6 {[%emt 0:
00:23]} Nxb6 {[%emt 0:00:00]} 24. Na5 {[%emt 0:00:00]} Qxe4 {[%emt 0:00:15]}
25. Qxe4 {[%emt 0:00:32]} Rxe4 {[%emt 0:00:00]} 1/2-1/2

[Event "RUS-ch Blitz 2021"]
[Site "Sochi"]
[Date "2021.10.11"]
[Round "1.9"]
[White "Alekseev, Evgeny"]
[Black "Nezamyatin, Ruslan"]
[Result "1-0"]
[ECO "C01"]
[WhiteElo "2602"]
[BlackElo "2070"]
[Annotator "ChessBase"]
[PlyCount "75"]
[EventDate "2021.10.11"]
[EventType "blitz"]
[EventCountry "RUS"]
[SourceTitle "playchess.com"]
[Source "ChessBase"]
[SourceQuality "1"]
[TimeControl "180+2"]

1. e4 {[%emt 0:00:00]} e6 {[%emt 0:00:05]} 2. d4 {[%emt 0:00:02]} d5 {[%emt 0:
00:00]} 3. Bd3 {[%emt 0:00:10]} c5 {[%emt 0:00:20]} 4. exd5 {[%emt 0:00:00]}
exd5 {[%emt 0:00:03]} 5. Nf3 {[%emt 0:00:00]} c4 {[%emt 0:00:41]} 6. Be2 {
[%emt 0:00:00]} Nf6 {[%emt 0:00:00]} 7. O-O {[%emt 0:00:00]} Bd6 {[%emt 0:00:
00]} 8. b3 {[%emt 0:00:00]} cxb3 {[%emt 0:00:00]} 9. axb3 {[%emt 0:00:10]} O-O
{[%emt 0:00:02]} 10. Bg5 {[%emt 0:00:13]} h6 {[%emt 0:00:07]} 11. Bh4 {[%emt 0:
00:00]} Nc6 {[%emt 0:00:09]} 12. c3 {[%emt 0:00:07]} Be6 {[%emt 0:00:24]} 13.
Nbd2 {[%emt 0:00:17]} Rc8 {[%emt 0:00:02]} 14. Bd3 {[%emt 0:00:08]} a6 {
[%emt 0:00:38]} 15. Re1 {[%emt 0:00:04]} Nb8 {[%emt 0:00:14]} 16. c4 {[%emt 0:
00:07]} Be7 {[%emt 0:00:08]} 17. Rc1 {[%emt 0:00:25]} Nc6 {[%emt 0:00:13]} 18.
c5 {[%emt 0:00:00]} Nd7 {[%emt 0:00:22]} 19. Bxe7 {[%emt 0:00:17]} Nxe7 {
[%emt 0:00:00]} 20. b4 {[%emt 0:00:15]} Nf6 {[%emt 0:00:01]} 21. Qb3 {[%emt 0:
00:11]} Nc6 {[%emt 0:00:01]} 22. b5 {[%emt 0:00:05]} axb5 {[%emt 0:00:01]} 23.
Qxb5 {[%emt 0:00:04]} Rb8 {[%emt 0:00:06]} 24. Rb1 {[%emt 0:00:00]} Qa5 {
[%emt 0:00:04]} 25. Qxa5 {[%emt 0:00:10]} Nxa5 {[%emt 0:00:01]} 26. Rb5 {
[%emt 0:00:05]} Nc4 {[%emt 0:00:04]} 27. Rb4 {[%emt 0:00:11]} Nxd2 {[%emt 0:00:
00]} 28. Nxd2 {[%emt 0:00:02]} Rfe8 {[%emt 0:00:08]} 29. Reb1 {[%emt 0:00:03]}
Bc8 {[%emt 0:00:03]} 30. c6 {[%emt 0:00:06]} b6 {[%emt 0:00:03]} 31. Rxb6 {
[%emt 0:00:11]} Rxb6 {[%emt 0:00:00]} 32. Rxb6 {[%emt 0:00:00]} Ne4 {[%emt 0:
00:04]} 33. Bxe4 {[%emt 0:00:05]} dxe4 {[%emt 0:00:00]} 34. d5 {[%emt 0:00:05]}
Rd8 {[%emt 0:00:01]} 35. Rb8 {[%emt 0:00:00]} Kf8 {[%emt 0:00:00]} 36. Nc4 {
[%emt 0:00:06]} Ke7 {[%emt 0:00:05]} 37. d6+ {[%emt 0:00:04]} Ke6 {[%emt 0:00:
00]} 38. d7 {[%emt 0:00:03]} 1-0

[Event "RUS-ch Blitz 2021"]
[Site "Sochi"]
[Date "2021.10.11"]
[Round "1.10"]
[White "Mochalov, Dmitriy"]
[Black "Timofeev, Artyom"]
[Result "0-1"]
[ECO "B08"]
[WhiteElo "1798"]
[BlackElo "2586"]
[Annotator "ChessBase"]
[PlyCount "70"]
[EventDate "2021.10.11"]
[EventType "blitz"]
[EventCountry "RUS"]
[SourceTitle "playchess.com"]
[Source "ChessBase"]
[SourceQuality "1"]
[TimeControl "180+2"]

1. e4 {[%emt 0:00:00]} d6 {[%emt 0:00:00]} 2. d4 {[%emt 0:00:05]} Nf6 {[%emt 0:
00:00]} 3. Nc3 {[%emt 0:00:00]} g6 {[%emt 0:00:00]} 4. Be2 {[%emt 0:00:09]} Bg7
{[%emt 0:00:00]} 5. Be3 {[%emt 0:00:06]} c6 {[%emt 0:00:00]} 6. h3 {[%emt 0:00:
21]} Nbd7 {[%emt 0:00:00]} 7. Nf3 {[%emt 0:00:05]} Qc7 {[%emt 0:00:00]} 8. Qd2
{[%emt 0:00:06]} b5 {[%emt 0:00:05]} 9. a3 {[%emt 0:00:00]} O-O {[%emt 0:00:06]
} 10. O-O {[%emt 0:00:00]} a6 {[%emt 0:00:05]} 11. Bh6 {[%emt 0:00:06]} Bb7 {
[%emt 0:00:05]} 12. Bxg7 {[%emt 0:00:00]} Kxg7 {[%emt 0:00:05]} 13. Qe3 {
[%emt 0:00:15]} e5 {[%emt 0:00:10]} 14. Rad1 {[%emt 0:00:05]} Rfe8 {[%emt 0:00:
05]} 15. dxe5 {[%emt 0:00:00]} dxe5 {[%emt 0:00:00]} 16. Rd2 {[%emt 0:00:09]}
Nf8 {[%emt 0:00:06]} 17. Rfd1 {[%emt 0:00:05]} Ne6 {[%emt 0:00:11]} 18. Bf1 {
[%emt 0:00:05]} c5 {[%emt 0:00:05]} 19. Nd5 {[%emt 0:01:05]} Bxd5 {[%emt 0:00:
04]} 20. exd5 {[%emt 0:00:00]} Nd4 {[%emt 0:00:04]} 21. c3 {[%emt 0:00:13]} Nf5
{[%emt 0:00:00]} 22. Qe1 {[%emt 0:00:41]} e4 {[%emt 0:00:00]} 23. d6 {[%emt 0:
00:10]} Nxd6 {[%emt 0:00:08]} 24. Rxd6 {[%emt 0:00:00]} exf3 {[%emt 0:00:00]}
25. Qd2 {[%emt 0:00:04]} Ne4 {[%emt 0:00:00]} 26. Qf4 {[%emt 0:00:02]} Nxd6 {
[%emt 0:00:04]} 27. Rxd6 {[%emt 0:00:00]} Qe7 {[%emt 0:00:04]} 28. Rd1 {
[%emt 0:00:04]} fxg2 {[%emt 0:00:04]} 29. Bxg2 {[%emt 0:00:02]} Rad8 {[%emt 0:
00:00]} 30. Rxd8 {[%emt 0:00:02]} Rxd8 {[%emt 0:00:04]} 31. h4 {[%emt 0:00:00]}
Qd6 {[%emt 0:00:04]} 32. Qe3 {[%emt 0:00:00]} h5 {[%emt 0:00:04]} 33. b4 {
[%emt 0:00:03]} c4 {[%emt 0:00:04]} 34. Qa7 {[%emt 0:00:03]} Qf6 {[%emt 0:00:
04]} 35. Qe3 {[%emt 0:00:04]} Rd3 {[%emt 0:00:00]} 0-1

[Event "RUS-ch Blitz 2021"]
[Site "Sochi"]
[Date "2021.10.11"]
[Round "1.11"]
[White "Kobalia, Mikhail"]
[Black "Palin, Denis"]
[Result "1-0"]
[ECO "C00"]
[WhiteElo "2600"]
[BlackElo "2110"]
[Annotator "ChessBase"]
[PlyCount "48"]
[EventDate "2021.10.11"]
[EventType "blitz"]
[EventCountry "RUS"]
[SourceTitle "playchess.com"]
[Source "ChessBase"]
[SourceQuality "1"]
[TimeControl "180+2"]

1. e4 {[%emt 0:00:00]} e6 {[%emt 0:00:00]} 2. d3 {[%emt 0:00:00]} d5 {[%emt 0:
00:06]} 3. Nd2 {[%emt 0:00:02]} Nf6 {[%emt 0:00:00]} 4. Ngf3 {[%emt 0:00:00]}
Bc5 {[%emt 0:00:00]} 5. c3 {[%emt 0:00:12]} b6 {[%emt 0:00:00]} 6. e5 {[%emt 0:
00:00]} Nfd7 {[%emt 0:00:12]} 7. d4 {[%emt 0:00:00]} Be7 {[%emt 0:00:00]} 8.
Bd3 {[%emt 0:00:00]} c5 {[%emt 0:00:03]} 9. Nf1 {[%emt 0:00:02]} Ba6 {[%emt 0:
00:06]} 10. Ng3 {[%emt 0:00:05]} Bxd3 {[%emt 0:00:13]} 11. Qxd3 {[%emt 0:00:01]
} O-O {[%emt 0:00:16]} 12. h4 {[%emt 0:00:00]} Nc6 {[%emt 0:00:15]} 13. Ng5 {
[%emt 0:00:00]} g6 {[%emt 0:00:07]} 14. Nxh7 {[%emt 0:01:25]} Kxh7 {[%emt 0:00:
01]} 15. h5 {[%emt 0:00:00]} Rh8 {[%emt 0:01:47]} 16. hxg6+ {[%emt 0:00:24]}
Kg7 {[%emt 0:00:01]} 17. Nh5+ {[%emt 0:00:08]} Kg8 {[%emt 0:00:20]} 18. g7 {
[%emt 0:00:02]} Rh7 {[%emt 0:00:05]} 19. Bd2 {[%emt 0:00:15]} cxd4 {[%emt 0:00:
03]} 20. cxd4 {[%emt 0:00:01]} Nb4 {[%emt 0:00:00]} 21. Bxb4 {[%emt 0:00:27]}
Bxb4+ {[%emt 0:00:00]} 22. Ke2 {[%emt 0:00:00]} Rc8 {[%emt 0:00:04]} 23. Nf6+ {
[%emt 0:00:08]} Nxf6 {[%emt 0:00:03]} 24. exf6 {[%emt 0:00:00]} Rh2 {[%emt 0:
00:06]} 1-0